[Event "Schack-SM 2024: Junior-SM"]
[Site "Fortnox Arena, Hejaregatan 5, Vaxjo, Sweden"]
[Date "2024.07.04"]
[Round "6.5"]
[White "Falkevall, Axel"]
[Black "Grahn, Vidar"]
[Result "1-0"]
[TimeControl "90 minutes for 40 moves + 30 minutes for the rest of the game + 30 seconds per move from move one."]
[WhiteTitle "FM"]
[BlackTitle "FM"]
[WhiteElo "2318"]
[BlackElo "2264"]

1. d4 {[%clk 01:30:58]} {[%emt 00:00:02]} d5 {[%clk 01:30:57]} {[%emt
00:00:04]} 2. c4 {[%clk 01:31:22]} {[%emt 00:00:06]} e6 {[%clk 01:31:24]}
{[%emt 00:00:03]} 3. Nf3 {[%clk 01:31:45]} {[%emt 00:00:06]} Nf6 {[%clk
01:31:50]} {[%emt 00:00:04]} 4. Nc3 {[%clk 01:32:11]} {[%emt 00:00:05]} dxc4
{[%clk 01:32:17]} {[%emt 00:00:03]} 5. e4 {[%clk 01:32:35]} {[%emt 00:00:06]}
b5 {[%clk 01:32:42]} {[%emt 00:00:04]} 6. e5 {[%clk 01:32:56]} {[%emt
00:00:09]} Nd5 {[%clk 01:33:10]} {[%emt 00:00:03]} 7. Nxb5 {[%clk 01:33:21]}
{[%emt 00:00:05]} Nb6 {[%clk 01:33:36]} {[%emt 00:00:03]} 8. Be2 {[%clk
01:33:25]} {[%emt 00:00:26]} Nc6 {[%clk 01:34:03]} {[%emt 00:00:04]} 9. Nc3
{[%clk 01:33:48]} {[%emt 00:00:06]} Be7 {[%clk 01:34:28]} {[%emt 00:00:05]} 10.
O-O {[%clk 01:34:13]} {[%emt 00:00:06]} O-O {[%clk 01:34:55]} {[%emt 00:00:03]}
11. Be3 {[%clk 01:34:21]} {[%emt 00:00:22]} Rb8 {[%clk 01:35:20]} {[%emt
00:00:05]} 12. b3 {[%clk 01:34:18]} {[%emt 00:00:32]} cxb3 {[%clk 01:35:47]}
{[%emt 00:00:04]} 13. axb3 {[%clk 01:34:44]} {[%emt 00:00:04]} Bb7 {[%clk
01:36:10]} {[%emt 00:00:06]} 14. Qb1 {[%clk 01:34:58]} {[%emt 00:00:17]} Nb4
{[%clk 01:36:36]} {[%emt 00:00:03]} 15. Ne4 {[%clk 01:35:10]} {[%emt 00:00:18]}
h6 {[%clk 01:37:02]} {[%emt 00:00:04]} 16. Rxa7 {[%clk 01:35:06]} {[%emt
00:00:33]} N6d5 {[%clk 01:37:28]} {[%emt 00:00:06]} 17. Bd2 {[%clk 01:35:04]}
{[%emt 00:00:30]} Nc6 {[%clk 01:37:54]} {[%emt 00:00:04]} 18. Ra1 {[%clk
01:35:29]} {[%emt 00:00:06]} Ndb4 {[%clk 01:38:20]} {[%emt 00:00:04]} 19. Be3
{[%clk 01:35:38]} {[%emt 00:00:20]} Nd5 {[%clk 01:38:45]} {[%emt 00:00:05]} 20.
Bd2 {[%clk 01:36:05]} {[%emt 00:00:03]} Ndb4 {[%clk 01:39:11]} {[%emt
00:00:05]} 21. Bc3 {[%clk 01:36:26]} {[%emt 00:00:08]} Nd5 {[%clk 01:39:28]}
{[%emt 00:00:13]} 22. Rd1 {[%clk 01:36:50]} {[%emt 00:00:06]} Nxc3 {[%clk
01:38:17]} {[%emt 00:01:41]} 23. Nxc3 {[%clk 01:36:11]} {[%emt 00:01:09]} Nb4
{[%clk 01:38:09]} {[%emt 00:00:38]} 24. Qc1 {[%clk 01:36:37]} {[%emt 00:00:05]}
Bc6 {[%clk 01:33:54]} {[%emt 00:04:45]} 25. Ne1 {[%clk 01:28:38]} {[%emt
00:08:29]} Ra8 {[%clk 01:29:36]} {[%emt 00:04:48]} 26. Na4 {[%clk 01:21:27]}
{[%emt 00:07:40]} Ra5 {[%clk 01:14:14]} {[%emt 00:15:53]} 27. Bf3 {[%clk
01:08:16]} {[%emt 00:13:41]} Bd5 {[%clk 01:10:30]} {[%emt 00:04:14]} 28. Bxd5
{[%clk 01:03:34]} {[%emt 00:05:12]} Rxd5 {[%clk 01:05:35]} {[%emt 00:05:25]} 29.
Nf3 {[%clk 01:00:17]} {[%emt 00:03:47]} Qb8 {[%clk 01:03:12]} {[%emt 00:02:53]}
30. Qc4 {[%clk 00:50:36]} {[%emt 00:10:11]} Rfd8 {[%clk 00:54:57]} {[%emt
00:08:46]} 31. h3 {[%clk 00:41:02]} {[%emt 00:10:02]} Qb7 {[%clk 00:45:38]}
{[%emt 00:09:48]} 32. Rdc1 {[%clk 00:37:41]} {[%emt 00:03:52]} R5d7 {[%clk
00:41:39]} {[%emt 00:04:29]} 33. Nc3 {[%clk 00:30:01]} {[%emt 00:08:10]} Rc8
{[%clk 00:38:21]} {[%emt 00:03:49]} 34. Ra5 {[%clk 00:11:00]} {[%emt 00:19:31]}
c5 {[%clk 00:35:25]} {[%emt 00:03:26]} 35. Na4 {[%clk 00:09:54]} {[%emt
00:01:37]} Qc7 {[%clk 00:32:13]} {[%emt 00:03:42]} 36. Rb5 {[%clk 00:08:39]}
{[%emt 00:01:45]} Rb8 {[%clk 00:26:30]} {[%emt 00:06:12]} 37. Qxb4 {[%clk
00:07:24]} {[%emt 00:01:46]} 1-0

[Event "Schack-SM 2024: Junior-SM"]
[Site "Fortnox Arena, Hejaregatan 5, Vaxjo, Sweden"]
[Date "2024.07.03"]
[Round "5.2"]
[White "Rasti, Arvin"]
[Black "Frank, Anton 2006"]
[Result "1-0"]
[TimeControl "90 minutes for 40 moves + 30 minutes for the rest of the game + 30 seconds per move from move one."]
[WhiteTitle "FM"]
[WhiteElo "2210"]
[BlackElo "2131"]

1. Nf3 {[%clk 01:22:28]} {[%emt 00:08:32]} d5 {[%clk 01:30:20]} {[%emt
00:00:41]} 2. g3 {[%clk 01:22:46]} {[%emt 00:00:12]} Nf6 {[%clk 01:30:43]}
{[%emt 00:00:06]} 3. Bg2 {[%clk 01:23:07]} {[%emt 00:00:09]} e6 {[%clk
01:31:06]} {[%emt 00:00:08]} 4. O-O {[%clk 01:22:56]} {[%emt 00:00:41]} Be7
{[%clk 01:31:28]} {[%emt 00:00:07]} 5. d3 {[%clk 01:22:05]} {[%emt 00:01:22]}
O-O {[%clk 01:30:14]} {[%emt 00:01:44]} 6. Nbd2 {[%clk 01:22:26]} {[%emt
00:00:09]} c5 {[%clk 01:27:21]} {[%emt 00:03:22]} 7. e4 {[%clk 01:22:49]}
{[%emt 00:00:07]} Nc6 {[%clk 01:22:23]} {[%emt 00:05:29]} 8. e5 {[%clk
01:23:03]} {[%emt 00:00:16]} Nd7 {[%clk 01:22:38]} {[%emt 00:00:13]} 9. Re1
{[%clk 01:23:27]} {[%emt 00:00:07]} Qc7 {[%clk 01:09:06]} {[%emt 00:14:03]} 10.
Qe2 {[%clk 01:22:27]} {[%emt 00:01:29]} b6 {[%clk 01:06:49]} {[%emt 00:02:48]}
11. h4 {[%clk 01:22:36]} {[%emt 00:00:21]} Bb7 {[%clk 01:05:34]} {[%emt
00:01:46]} 12. h5 {[%clk 01:18:42]} {[%emt 00:04:21]} Rac8 {[%clk 00:52:47]}
{[%emt 00:13:19]} 13. Nf1 {[%clk 01:11:05]} {[%emt 00:08:07]} Nd4 {[%clk
00:48:33]} {[%emt 00:04:44]} 14. Nxd4 {[%clk 01:10:57]} {[%emt 00:00:38]} cxd4
{[%clk 00:47:25]} {[%emt 00:01:37]} 15. Qg4 {[%clk 01:07:45]} {[%emt 00:03:43]}
Nxe5 {[%clk 00:42:27]} {[%emt 00:05:28]} 16. Qxd4 {[%clk 01:08:11]} {[%emt
00:00:05]} Bf6 {[%clk 00:41:48]} {[%emt 00:01:08]} 17. Bf4 {[%clk 01:02:40]}
{[%emt 00:06:01]} Nf3+ {[%clk 00:41:17]} {[%emt 00:01:01]} 18. Bxf3 {[%clk
01:03:08]} {[%emt 00:00:02]} Bxd4 {[%clk 00:41:36]} {[%emt 00:00:11]} 19. Bxc7
{[%clk 01:03:31]} {[%emt 00:00:06]} Rxc7 {[%clk 00:42:00]} {[%emt 00:00:07]} 20.
c3 {[%clk 01:03:54]} {[%emt 00:00:08]} Bf6 {[%clk 00:41:42]} {[%emt 00:00:47]}
21. Nh2 {[%clk 01:03:35]} {[%emt 00:00:49]} h6 {[%clk 00:38:35]} {[%emt
00:03:36]} 22. Ng4 {[%clk 01:02:14]} {[%emt 00:01:51]} Be7 {[%clk 00:38:47]}
{[%emt 00:00:19]} 23. a4 {[%clk 00:58:48]} {[%emt 00:03:57]} a6 {[%clk
00:35:35]} {[%emt 00:03:42]} 24. Ne5 {[%clk 00:57:52]} {[%emt 00:01:25]} Rfc8
{[%clk 00:29:20]} {[%emt 00:06:45]} 25. d4 {[%clk 00:57:38]} {[%emt 00:00:44]}
Rb8 {[%clk 00:26:36]} {[%emt 00:03:15]} 26. Rec1 {[%clk 00:51:06]} {[%emt
00:07:01]} Bd6 {[%clk 00:26:08]} {[%emt 00:00:58]} 27. Nd3 {[%clk 00:51:08]}
{[%emt 00:00:28]} Bc6 {[%clk 00:20:51]} {[%emt 00:05:47]} 28. Be2 {[%clk
00:49:06]} {[%emt 00:02:32]} Be8 {[%clk 00:17:00]} {[%emt 00:04:21]} 29. f4
{[%clk 00:44:36]} {[%emt 00:05:00]} Rbc8 {[%clk 00:15:00]} {[%emt 00:02:31]} 30.
Kf2 {[%clk 00:43:05]} {[%emt 00:02:00]} b5 {[%clk 00:13:17]} {[%emt 00:02:13]}
31. axb5 {[%clk 00:43:00]} {[%emt 00:00:35]} axb5 {[%clk 00:13:33]} {[%emt
00:00:14]} 32. Ra6 {[%clk 00:43:17]} {[%emt 00:00:13]} Be7 {[%clk 00:12:33]}
{[%emt 00:01:30]} 33. Rca1 {[%clk 00:43:19]} {[%emt 00:00:27]} Kf8 {[%clk
00:10:16]} {[%emt 00:02:47]} 34. Ke3 {[%clk 00:39:53]} {[%emt 00:03:57]} b4
{[%clk 00:06:11]} {[%emt 00:04:35]} 35. cxb4 {[%clk 00:37:09]} {[%emt
00:03:14]} Bb5 {[%clk 00:04:35]} {[%emt 00:02:05]} 36. Rb6 {[%clk 00:37:21]}
{[%emt 00:00:20]} Be8 {[%clk 00:02:53]} {[%emt 00:02:12]} 37. Nc5 {[%clk
00:36:50]} {[%emt 00:01:01]} Bc6 {[%clk 00:01:23]} {[%emt 00:02:00]} 38. b5
{[%clk 00:36:01]} {[%emt 00:01:18]} Be8 {[%clk 00:01:47]} {[%emt 00:00:06]} 39.
b4 {[%clk 00:36:23]} {[%emt 00:00:09]} Kg8 {[%clk 00:00:55]} {[%emt 00:01:22]}
40. Rba6 {[%clk 00:36:23]} {[%emt 00:00:29]} Rb8 {[%clk 00:00:35]} {[%emt
00:00:51]} 41. b6 {[%clk 00:35:00]} {[%emt 00:01:53]} Rcc8 {[%clk 00:24:15]}
{[%emt 00:06:50]} 42. b7 {[%clk 01:04:43]} {[%emt 00:00:46]} Rd8 {[%clk
00:23:43]} {[%emt 00:01:02]} 43. Ra8 {[%clk 01:05:03]} {[%emt 00:00:11]} Bc6
{[%clk 00:19:40]} {[%emt 00:04:33]} 44. Rxb8 {[%clk 01:02:52]} {[%emt
00:02:40]} Rxb8 {[%clk 00:20:02]} {[%emt 00:00:08]} 45. Ra6 {[%clk 01:02:21]}
{[%emt 00:01:01]} Bxb7 {[%clk 00:09:23]} {[%emt 00:11:10]} 46. Rb6 {[%clk
01:02:44]} {[%emt 00:00:07]} Ra8 {[%clk 00:09:46]} {[%emt 00:00:07]} 47. Rxb7
{[%clk 01:03:02]} {[%emt 00:00:12]} Ra3+ {[%clk 00:10:00]} {[%emt 00:00:16]} 48.
Bd3 {[%clk 01:03:20]} {[%emt 00:00:11]} Bd6 {[%clk 00:08:09]} {[%emt 00:02:21]}
49. Rd7 {[%clk 01:03:46]} {[%emt 00:00:04]} Bxc5 {[%clk 00:08:31]} {[%emt
00:00:08]} 50. dxc5 {[%clk 01:04:07]} {[%emt 00:00:09]} Kf8 {[%clk 00:08:42]}
{[%emt 00:00:19]} 51. c6 {[%clk 01:04:27]} {[%emt 00:00:10]} Ke8 {[%clk
00:08:59]} {[%emt 00:00:13]} 52. b5 {[%clk 01:04:51]} {[%emt 00:00:06]} Rb3
{[%clk 00:08:22]} {[%emt 00:01:07]} 53. b6 {[%clk 01:04:59]} {[%emt 00:00:22]}
Rxb6 {[%clk 00:08:43]} {[%emt 00:00:10]} 54. Rb7 {[%clk 01:05:24]} {[%emt
00:00:04]} 1-0

[Event "Schack-SM 2024: Junior-SM"]
[Site "Fortnox Arena, Hejaregatan 5, Vaxjo, Sweden"]
[Date "2024.07.03"]
[Round "5.3"]
[White "Nilsson, Oliver"]
[Black "Soderstrom, Adrian"]
[Result "0-1"]
[TimeControl "90 minutes for 40 moves + 30 minutes for the rest of the game + 30 seconds per move from move one."]
[BlackTitle "FM"]
[WhiteElo "2099"]
[BlackElo "2351"]

1. e4 {[%clk 01:30:57]} {[%emt 00:00:02]} e5 {[%clk 01:29:07]} {[%emt
00:01:49]} 2. Nf3 {[%clk 01:31:25]} {[%emt 00:00:06]} Nc6 {[%clk 01:29:15]}
{[%emt 00:00:22]} 3. Bb5 {[%clk 01:31:44]} {[%emt 00:00:11]} a6 {[%clk
01:29:15]} {[%emt 00:00:31]} 4. Ba4 {[%clk 01:32:10]} {[%emt 00:00:04]} Nf6
{[%clk 01:29:38]} {[%emt 00:00:07]} 5. O-O {[%clk 01:32:32]} {[%emt 00:00:08]}
Be7 {[%clk 01:30:04]} {[%emt 00:00:03]} 6. Re1 {[%clk 01:32:55]} {[%emt
00:00:07]} b5 {[%clk 01:30:31]} {[%emt 00:00:04]} 7. Bb3 {[%clk 01:33:22]}
{[%emt 00:00:04]} O-O {[%clk 01:30:26]} {[%emt 00:00:33]} 8. a4 {[%clk
01:27:58]} {[%emt 00:05:55]} Bb7 {[%clk 01:30:25]} {[%emt 00:00:31]} 9. d3
{[%clk 01:24:39]} {[%emt 00:03:49]} d5 {[%clk 01:28:39]} {[%emt 00:02:16]} 10.
Nbd2 {[%clk 01:12:16]} {[%emt 00:12:53]} dxe4 {[%clk 01:23:48]} {[%emt
00:05:20]} 11. dxe4 {[%clk 01:10:33]} {[%emt 00:02:13]} Bc5 {[%clk 01:14:23]}
{[%emt 00:09:57]} 12. c3 {[%clk 01:07:46]} {[%emt 00:03:17]} Qd6 {[%clk
01:03:53]} {[%emt 00:10:59]} 13. Qe2 {[%clk 01:05:32]} {[%emt 00:02:43]} Ne7
{[%clk 00:59:03]} {[%emt 00:05:20]} 14. axb5 {[%clk 01:03:23]} {[%emt
00:02:39]} Ng6 {[%clk 00:57:40]} {[%emt 00:01:53]} 15. Nc4 {[%clk 01:01:06]}
{[%emt 00:02:47]} Qe7 {[%clk 00:57:45]} {[%emt 00:00:25]} 16. Bg5 {[%clk
00:58:50]} {[%emt 00:02:46]} h6 {[%clk 00:55:03]} {[%emt 00:03:12]} 17. Na5
{[%clk 00:53:33]} {[%emt 00:05:47]} hxg5 {[%clk 00:52:18]} {[%emt 00:03:15]} 18.
Nxb7 {[%clk 00:53:53]} {[%emt 00:00:10]} Nf4 {[%clk 00:48:28]} {[%emt
00:04:20]} 19. Qc4 {[%clk 00:51:08]} {[%emt 00:03:15]} Bb6 {[%clk 00:48:21]}
{[%emt 00:00:37]} 20. bxa6 {[%clk 00:48:33]} {[%emt 00:03:05]} Ng4 {[%clk
00:42:56]} {[%emt 00:05:55]} 21. Rf1 {[%clk 00:47:49]} {[%emt 00:01:14]} Qf6
{[%clk 00:27:22]} {[%emt 00:16:04]} 22. Nc5 {[%clk 00:27:43]} {[%emt 00:20:36]}
Qd6 {[%clk 00:27:10]} {[%emt 00:00:42]} 23. Na4 {[%clk 00:22:20]} {[%emt
00:05:54]} Bxf2+ {[%clk 00:21:11]} {[%emt 00:06:29]} 24. Rxf2 {[%clk 00:22:07]}
{[%emt 00:00:43]} Nxf2 {[%clk 00:21:38]} {[%emt 00:00:03]} 25. Kxf2 {[%clk
00:22:23]} {[%emt 00:00:13]} g4 {[%clk 00:21:57]} {[%emt 00:00:12]} 26. Ne1
{[%clk 00:16:39]} {[%emt 00:06:13]} Rxa6 {[%clk 00:21:04]} {[%emt 00:01:23]} 27.
Rd1 {[%clk 00:16:18]} {[%emt 00:00:52]} Qh6 {[%clk 00:20:41]} {[%emt 00:00:52]}
28. Kg1 {[%clk 00:14:37]} {[%emt 00:02:11]} Rg6 {[%clk 00:18:11]} {[%emt
00:03:01]} 29. Qf1 {[%clk 00:06:15]} {[%emt 00:08:51]} Rf6 {[%clk 00:18:08]}
{[%emt 00:00:33]} 30. Nf3 {[%clk 00:02:55]} {[%emt 00:03:50]} gxf3 {[%clk
00:17:30]} {[%emt 00:01:08]} 31. Qxf3 {[%clk 00:03:19]} {[%emt 00:00:07]} Nxg2
{[%clk 00:16:59]} {[%emt 00:01:01]} 32. Qxg2 {[%clk 00:02:12]} {[%emt
00:01:36]} Rg6 {[%clk 00:17:26]} {[%emt 00:00:03]} 0-1

[Event "Schack-SM 2024: Junior-SM"]
[Site "Fortnox Arena, Hejaregatan 5, Vaxjo, Sweden"]
[Date "2024.07.03"]
[Round "5.4"]
[White "Strom-Engdahl, Alexander"]
[Black "Grahn, Vidar"]
[Result "1-0"]
[TimeControl "90 minutes for 40 moves + 30 minutes for the rest of the game + 30 seconds per move from move one."]
[BlackTitle "FM"]
[WhiteElo "2191"]
[BlackElo "2264"]

1. e4 {[%clk 01:30:29]} {[%emt 00:00:30]} c5 {[%clk 01:30:45]} {[%emt
00:00:16]} 2. Nf3 {[%clk 01:30:53]} {[%emt 00:00:06]} d6 {[%clk 01:31:11]}
{[%emt 00:00:05]} 3. Bb5+ {[%clk 01:30:50]} {[%emt 00:00:32]} Nd7 {[%clk
01:31:33]} {[%emt 00:00:08]} 4. a4 {[%clk 01:31:14]} {[%emt 00:00:06]} Ngf6
{[%clk 01:31:57]} {[%emt 00:00:06]} 5. Nc3 {[%clk 01:31:40]} {[%emt 00:00:05]}
a6 {[%clk 01:32:13]} {[%emt 00:00:14]} 6. Be2 {[%clk 01:31:20]} {[%emt
00:00:49]} g6 {[%clk 01:32:15]} {[%emt 00:00:29]} 7. O-O {[%clk 01:30:45]}
{[%emt 00:01:04]} Bg7 {[%clk 01:32:39]} {[%emt 00:00:06]} 8. a5 {[%clk
01:30:58]} {[%emt 00:00:16]} b5 {[%clk 01:32:55]} {[%emt 00:00:14]} 9. axb6
{[%clk 01:31:22]} {[%emt 00:00:07]} Bb7 {[%clk 01:33:20]} {[%emt 00:00:05]} 10.
d3 {[%clk 01:31:17]} {[%emt 00:00:35]} a5 {[%clk 01:33:42]} {[%emt 00:00:08]}
11. Qd2 {[%clk 01:27:44]} {[%emt 00:04:02]} O-O {[%clk 01:29:21]} {[%emt
00:04:52]} 12. Qg5 {[%clk 01:19:45]} {[%emt 00:08:29]} Qxb6 {[%clk 01:21:02]}
{[%emt 00:08:48]} 13. Nd2 {[%clk 01:12:43]} {[%emt 00:07:33]} Rfb8 {[%clk
01:09:05]} {[%emt 00:12:26]} 14. Nc4 {[%clk 01:04:17]} {[%emt 00:08:57]} Qd8
{[%clk 01:06:55]} {[%emt 00:02:40]} 15. Bf3 {[%clk 01:03:18]} {[%emt 00:01:28]}
Ne8 {[%clk 00:59:33]} {[%emt 00:07:53]} 16. Qh4 {[%clk 00:54:47]} {[%emt
00:09:00]} Ne5 {[%clk 00:52:31]} {[%emt 00:07:32]} 17. Nxe5 {[%clk 00:52:47]}
{[%emt 00:02:31]} Bxe5 {[%clk 00:52:22]} {[%emt 00:00:39]} 18. Bg5 {[%clk
00:51:13]} {[%emt 00:02:05]} f6 {[%clk 00:42:50]} {[%emt 00:10:01]} 19. Bd2
{[%clk 00:46:38]} {[%emt 00:05:04]} Bc8 {[%clk 00:38:12]} {[%emt 00:05:09]} 20.
Rfb1 {[%clk 00:37:15]} {[%emt 00:09:53]} Ng7 {[%clk 00:35:56]} {[%emt
00:02:46]} 21. Bg4 {[%clk 00:32:04]} {[%emt 00:05:40]} Be6 {[%clk 00:24:13]}
{[%emt 00:12:13]} 22. f4 {[%clk 00:27:24]} {[%emt 00:05:11]} Bd4+ {[%clk
00:22:43]} {[%emt 00:02:00]} 23. Kh1 {[%clk 00:27:47]} {[%emt 00:00:07]} Bxc3
{[%clk 00:17:01]} {[%emt 00:06:12]} 24. Bxc3 {[%clk 00:27:39]} {[%emt
00:00:38]} a4 {[%clk 00:16:56]} {[%emt 00:00:35]} 25. Ra3 {[%clk 00:22:29]}
{[%emt 00:05:38]} Qc8 {[%clk 00:15:02]} {[%emt 00:02:26]} 26. Bf3 {[%clk
00:21:38]} {[%emt 00:01:22]} Ra7 {[%clk 00:13:57]} {[%emt 00:01:34]} 27. Rba1
{[%clk 00:21:23]} {[%emt 00:00:45]} Bd7 {[%clk 00:12:22]} {[%emt 00:02:06]} 28.
e5 {[%clk 00:18:50]} {[%emt 00:03:02]} Nf5 {[%clk 00:10:32]} {[%emt 00:02:19]}
29. Qf2 {[%clk 00:18:55]} {[%emt 00:00:25]} fxe5 {[%clk 00:09:21]} {[%emt
00:01:42]} 30. fxe5 {[%clk 00:19:22]} {[%emt 00:00:04]} Bc6 {[%clk 00:09:19]}
{[%emt 00:00:30]} 31. b3 {[%clk 00:15:48]} {[%emt 00:04:04]} Qb7 {[%clk
00:07:17]} {[%emt 00:02:33]} 32. Rxa4 {[%clk 00:14:34]} {[%emt 00:01:44]} Rxa4
{[%clk 00:07:40]} {[%emt 00:00:06]} 33. Rxa4 {[%clk 00:14:59]} {[%emt
00:00:05]} Nd4 {[%clk 00:05:12]} {[%emt 00:02:59]} 34. Bxd4 {[%clk 00:13:00]}
{[%emt 00:02:30]} cxd4 {[%clk 00:05:14]} {[%emt 00:00:27]} 35. Bxc6 {[%clk
00:12:16]} {[%emt 00:01:13]} Qxc6 {[%clk 00:05:40]} {[%emt 00:00:04]} 36. Rc4
{[%clk 00:12:10]} {[%emt 00:00:37]} Qb5 {[%clk 00:01:45]} {[%emt 00:04:25]} 37.
Qxd4 {[%clk 00:10:46]} {[%emt 00:01:54]} Rf8 {[%clk 00:02:02]} {[%emt
00:00:13]} 38. h3 {[%clk 00:10:53]} {[%emt 00:00:23]} dxe5 {[%clk 00:01:55]}
{[%emt 00:00:37]} 39. Qc5 {[%clk 00:10:41]} {[%emt 00:00:41]} Qb8 {[%clk
00:01:47]} {[%emt 00:00:38]} 40. Qd5+ {[%clk 00:06:22]} {[%emt 00:04:49]} Kg7
{[%clk 00:01:39]} {[%emt 00:00:38]} 41. Re4 {[%clk 00:04:55]} {[%emt 00:01:57]}
Rf5 {[%clk 00:29:23]} {[%emt 00:02:46]} 42. Qc5 {[%clk 00:30:48]} {[%emt
00:04:38]} Qd6 {[%clk 00:27:13]} {[%emt 00:02:40]} 43. Qxd6 {[%clk 00:24:03]}
{[%emt 00:07:16]} exd6 {[%clk 00:27:39]} {[%emt 00:00:04]} 44. Kg1 {[%clk
00:24:25]} {[%emt 00:00:07]} Rf7 {[%clk 00:26:03]} {[%emt 00:02:04]} 45. Re1
{[%clk 00:23:07]} {[%emt 00:01:49]} Rc7 {[%clk 00:25:42]} {[%emt 00:00:51]} 46.
c4 {[%clk 00:20:08]} {[%emt 00:03:30]} Rb7 {[%clk 00:22:42]} {[%emt 00:03:30]}
47. Rb1 {[%clk 00:20:27]} {[%emt 00:00:10]} Rb4 {[%clk 00:22:03]} {[%emt
00:01:09]} 48. Kf2 {[%clk 00:20:39]} {[%emt 00:00:19]} d5 {[%clk 00:21:57]}
{[%emt 00:00:35]} 49. Ke3 {[%clk 00:19:14]} {[%emt 00:01:55]} Kf6 {[%clk
00:20:59]} {[%emt 00:01:29]} 50. Kd2 {[%clk 00:16:55]} {[%emt 00:02:48]} d4
{[%clk 00:21:05]} {[%emt 00:00:25]} 51. Ke2 {[%clk 00:17:08]} {[%emt 00:00:17]}
h5 {[%clk 00:20:39]} {[%emt 00:00:56]} 52. Kf3 {[%clk 00:16:08]} {[%emt
00:01:29]} Kf5 {[%clk 00:20:52]} {[%emt 00:00:18]} 53. g3 {[%clk 00:10:28]}
{[%emt 00:06:10]} g5 {[%clk 00:19:53]} {[%emt 00:01:29]} 54. g4+ {[%clk
00:09:25]} {[%emt 00:01:33]} hxg4+ {[%clk 00:19:00]} {[%emt 00:01:23]} 55.
hxg4+ {[%clk 00:09:50]} {[%emt 00:00:05]} Ke6 {[%clk 00:18:44]} {[%emt
00:00:46]} 56. Ke4 {[%clk 00:09:50]} {[%emt 00:00:29]} Rb8 {[%clk 00:18:16]}
{[%emt 00:00:59]} 57. Rf1 {[%clk 00:10:11]} {[%emt 00:00:09]} Rxb3 {[%clk
00:17:13]} {[%emt 00:01:33]} 58. Rf5 {[%clk 00:10:39]} {[%emt 00:00:02]} Kd6
{[%clk 00:16:47]} {[%emt 00:00:56]} 59. Rxe5 {[%clk 00:11:00]} {[%emt
00:00:09]} Rxd3 {[%clk 00:17:01]} {[%emt 00:00:15]} 60. Rd5+ {[%clk 00:11:23]}
{[%emt 00:00:07]} 1-0

[Event "Schack-SM 2024: Junior-SM"]
[Site "Fortnox Arena, Hejaregatan 5, Vaxjo, Sweden"]
[Date "2024.07.03"]
[Round "5.5"]
[White "Seo, Jung Hyun"]
[Black "Falkevall, Axel"]
[Result "1/2-1/2"]
[TimeControl "90 minutes for 40 moves + 30 minutes for the rest of the game + 30 seconds per move from move one."]
[BlackTitle "FM"]
[WhiteElo "2137"]
[BlackElo "2318"]

1. e4 {[%clk 01:30:59]} {[%emt 00:00:01]} e5 {[%clk 01:30:55]} {[%emt
00:00:04]} 2. Nf3 {[%clk 01:31:27]} {[%emt 00:00:03]} Nc6 {[%clk 01:31:18]}
{[%emt 00:00:07]} 3. d4 {[%clk 01:31:45]} {[%emt 00:00:11]} exd4 {[%clk
01:31:43]} {[%emt 00:00:05]} 4. Nxd4 {[%clk 01:32:14]} {[%emt 00:00:03]} Nf6
{[%clk 01:32:00]} {[%emt 00:00:12]} 5. Nxc6 {[%clk 01:32:43]} {[%emt 00:00:02]}
bxc6 {[%clk 01:32:21]} {[%emt 00:00:08]} 6. e5 {[%clk 01:33:11]} {[%emt
00:00:01]} Qe7 {[%clk 01:32:44]} {[%emt 00:00:08]} 7. Qe2 {[%clk 01:33:38]}
{[%emt 00:00:03]} Nd5 {[%clk 01:33:07]} {[%emt 00:00:06]} 8. c4 {[%clk
01:34:07]} {[%emt 00:00:02]} Ba6 {[%clk 01:33:30]} {[%emt 00:00:07]} 9. Qe4
{[%clk 01:34:35]} {[%emt 00:00:03]} Nf6 {[%clk 01:29:52]} {[%emt 00:04:06]} 10.
Qe2 {[%clk 01:34:57]} {[%emt 00:00:08]} Nd5 {[%clk 01:30:17]} {[%emt 00:00:06]}
11. Qe4 {[%clk 01:35:26]} {[%emt 00:00:01]} Nb4 {[%clk 01:30:16]} {[%emt
00:00:31]} 12. Nc3 {[%clk 01:35:49]} {[%emt 00:00:06]} Rd8 {[%clk 01:22:01]}
{[%emt 00:08:44]} 13. Kd1 {[%clk 01:35:27]} {[%emt 00:00:54]} d5 {[%clk
01:04:44]} {[%emt 00:17:47]} 14. exd6 {[%clk 01:35:53]} {[%emt 00:00:03]} Rxd6+
{[%clk 01:04:11]} {[%emt 00:01:04]} 15. Bd2 {[%clk 01:36:14]} {[%emt 00:00:09]}
c5 {[%clk 00:56:45]} {[%emt 00:07:55]} 16. a3 {[%clk 01:30:28]} {[%emt
00:06:16]} Nc6 {[%clk 00:55:56]} {[%emt 00:01:19]} 17. Qxe7+ {[%clk 01:28:09]}
{[%emt 00:02:49]} Bxe7 {[%clk 00:53:18]} {[%emt 00:03:07]} 18. Nd5 {[%clk
01:26:29]} {[%emt 00:02:11]} Nd4 {[%clk 00:40:59]} {[%emt 00:12:49]} 19. Nxc7+
{[%clk 01:01:59]} {[%emt 00:25:00]} Kd7 {[%clk 00:36:16]} {[%emt 00:05:13]} 20.
Nd5 {[%clk 01:02:23]} {[%emt 00:00:05]} Nb3 {[%clk 00:34:54]} {[%emt 00:01:53]}
21. Rb1 {[%clk 01:01:48]} {[%emt 00:01:05]} Nxd2 {[%clk 00:34:30]} {[%emt
00:00:54]} 22. Kxd2 {[%clk 01:02:12]} {[%emt 00:00:06]} Bb7 {[%clk 00:34:44]}
{[%emt 00:00:16]} 23. Kc2 {[%clk 01:02:01]} {[%emt 00:00:41]} Bxd5 {[%clk
00:34:56]} {[%emt 00:00:18]} 1/2-1/2